bitfinex/quotes_ETHUSD_20241124
["timestamp","ask_amount","ask_price","bid_price","bid_amount"]
[1732441814783,1.1261,3393.0,3391.5,4.59773256]
[1732441814966,1.1261,3392.9,3391.5,4.59773256]
[1732441815153,1.18360463,3392.9,3391.5,4.59773256]
[1732441815567,1.18360463,3392.9,3391.8,0.55]
[1732441815769,1.18360463,3392.9,3392.0,0.55]
[1732441815942,1.18360463,3392.9,3392.0,0.8728765]
[1732441816139,1.18360463,3392.9,3392.2,0.55]
[1732441816445,1.18360463,3392.9,3392.2,0.87287419]
[1732441816640,1.1261,3392.9,3392.2,0.8434]
[1732441816855,0.05758036,3392.8,3392.2,0.8434]
[1732441817049,1.1261,3392.9,3392.2,0.8434]
[1732441821054,1.1261,3392.9,3392.0,0.55]
[1732441821290,1.1261,3392.9,3392.8,3.55]
[1732441821497,1.1261,3392.9,3392.8,0.55]
[1732441821993,1.18368036,3392.9,3392.8,3.55]
[1732441822693,1.18368036,3392.9,3392.8,3.0]
[1732441822993,1.18368036,3392.9,3392.8,0.55]
[1732441823306,1.1705,3393.8,3392.8,0.55]
[1732441823773,0.05758036,3393.7,3392.6,0.57946993]
[1732441823970,0.05758036,3393.7,3392.6,0.96949226]
[1732441824267,1.1705,3393.8,3392.6,0.96949226]
[1732441825160,1.1705,3393.8,3393.3,3.0]
[1732441825594,1.1705,3393.8,3392.5,0.55]
[1732441826094,1.1705,3393.8,3393.3,3.0]
[1732441827194,1.1705,3393.8,3392.2,0.55]
[1732441827403,1.1705,3393.8,3392.2,1.30694963]
[1732441828307,1.2077,3393.6,3391.5,1.146]
[1732441828494,6.0235,3393.5,3391.6,0.75694963]
[1732441828662,1.2077,3393.4,3391.7,0.75694963]
[1732441828864,1.2077,3393.3,3391.7,0.75694963]
[1732441829085,1.26570586,3393.2,3391.7,0.75694963]
[1732441829599,1.26570586,3393.2,3391.8,0.55]
[1732441829795,1.2077,3393.0,3391.8,0.9169273]
[1732441830007,1.2077,3393.0,3392.0,0.55]
[1732441830362,0.18680559,3393.1,3392.0,0.55]
[1732441830363,1.26570586,3392.9,3392.0,0.55]
[1732441831306,1.26570586,3392.9,3392.6,3.0]
[1732441832074,1.26570586,3392.9,3392.2,0.55]
[1732441832292,1.29756165,3392.9,3392.1,0.55]
[1732441834170,1.29756165,3392.9,3392.6,3.0]
[1732441834410,1.29756165,3392.9,3392.1,0.55]
[1732441834614,1.29756165,3392.9,3391.8,0.2934]
[1732441834764,1.29756165,3392.9,3391.6,0.55]
[1732441835399,1.29756165,3392.9,3391.8,0.55]
[1732441835771,1.2077,3392.8,3391.8,0.55]
[1732441836099,1.2077,3392.6,3391.8,0.55]
[1732441836408,1.2077,3392.6,3391.5,0.8434]
[1732441836567,1.40168062,3392.5,3391.5,0.8434]
[1732441836912,1.29731632,3392.5,3391.7,0.55]
[1732441840983,1.2077,3392.5,3391.7,0.55]
[1732441841197,1.2077,3392.5,3391.9,0.55]
[1732441841370,0.08969464,3392.4,3391.7,0.55]
[1732441842875,1.1785,3392.3,3391.7,0.55]
[1732441843072,0.08969725,3392.2,3391.7,0.55]
[1732441845289,1.1785,3392.1,3391.7,0.55]
[1732441845492,1.1785,3392.1,3391.4,0.8434]
[1732441845493,0.08967376,3392.0,3391.4,0.8434]
[1732441845704,1.1785,3392.1,3391.4,0.8434]
[1732441848707,1.17651555,3392.1,3391.4,0.8434]
[1732441849091,0.08963722,3392.0,3391.4,0.8434]
[1732441851515,6.0235,3393.3,3391.4,0.8434]
[1732441851736,1.1785,3393.1,3391.4,0.8434]
[1732441852217,1.1785,3393.1,3392.3,3.0]
[1732441852380,1.1785,3392.9,3392.3,3.0]
[1732441852815,1.1785,3392.7,3392.3,3.0]
[1732441853017,1.1785,3392.7,3391.5,0.2934]
[1732441853227,1.1785,3392.7,3391.6,0.55]
[1732441853520,1.1785,3392.5,3392.3,3.0]
[1732441853702,1.1785,3392.5,3391.5,0.2934]
[1732441853880,1.1785,3392.5,3391.6,0.55]
[1732441854081,1.26815288,3392.4,3392.3,3.0]
[1732441854526,1.26815288,3392.4,3391.6,0.55]
[1732441855004,1.1785,3392.4,3391.6,0.55]
[1732441855408,1.26815288,3392.3,3391.6,0.55]
[1732441855630,1.26815288,3392.3,3391.5,0.2934]
[1732441855816,1.26815288,3392.3,3391.6,0.55]
[1732441856202,1.1785,3392.3,3391.6,0.55]
[1732441856405,0.08965288,3392.2,3391.6,0.55]
[1732441857740,0.08965288,3392.2,3391.5,0.2934]
[1732441858252,0.08965288,3392.2,3391.6,0.55]
[1732441858607,1.1785,3392.3,3391.6,0.55]
[1732441858840,1.1785,3392.3,3391.5,0.2934]
[1732441859047,0.08960848,3392.2,3391.6,0.55]
[1732441859316,1.1785,3392.3,3391.6,0.55]
[1732441859946,0.08960848,3392.2,3391.5,0.2934]
[1732441860148,0.08960848,3392.2,3391.6,0.55]
[1732441860455,1.1785,3392.3,3391.6,0.55]
[1732441860955,0.08960848,3392.2,3391.4,0.8434]
[1732441861261,1.1658,3392.1,3391.4,0.8434]
[1732441861634,1.1658,3392.1,3391.4,1.2103273]
[1732441861851,0.08960848,3392.0,3391.4,1.2103273]
[1732441862247,0.08960848,3392.0,3391.4,1.23980797]
[1732441862567,0.0868608,3392.0,3391.7,0.8434]
[1732441863069,1.1278,3392.4,3391.7,0.8434]
[1732441863379,0.0868608,3392.3,3391.7,0.8434]
[1732441864462,1.0996,3392.2,3391.7,0.8434]
[1732441864978,1.1864608,3392.1,3391.7,0.8434]
[1732441865153,1.1864608,3392.1,3391.1,0.2936]
[1732441866975,1.1864608,3392.1,3391.3,0.2936]
[1732441867140,1.1864608,3392.1,3391.4,0.55]
[1732441867536,1.0996,3392.1,3391.4,0.55]
[1732441867786,1.1915,3391.9,3391.3,0.2936]
[1732441867946,1.1915,3391.9,3391.4,0.55]
[1732441868141,0.08679552,3391.8,3391.4,0.55]
[1732441868339,1.1915,3391.9,3391.4,0.55]
[1732441868842,0.08679552,3391.8,3391.3,0.2936]
[1732441869046,0.08679552,3391.8,3391.4,0.55]
[1732441869283,1.1915,3391.9,3391.4,0.55]
[1732441869580,1.1915,3391.7,3391.4,0.55]
[1732441869958,1.1915,3391.5,3391.4,0.55]
[1732441870276,1.27825113,3391.5,3391.4,0.55]
[1732441871253,1.27825113,3391.5,3391.4,0.8436]
[1732441871467,1.1915,3391.5,3391.4,0.55]
[1732441871660,1.27819368,3391.5,3391.4,0.55]
[1732441872081,1.27819368,3391.5,3391.0,0.55]
[1732441872585,1.1915,3391.5,3391.0,0.55]
[1732441872882,0.08668062,3391.4,3391.0,0.55]
[1732441873186,1.1915,3392.0,3391.3,0.2936]
[1732441873355,1.1915,3392.0,3391.2,3.55]
[1732441873356,1.1915,3392.0,3391.4,0.55]
[1732441873558,1.1915,3392.0,3391.3,0.55]
[1732441873960,1.1915,3392.0,3391.2,0.55]
[1732441874176,1.1915,3392.0,3391.8,3.0]
[1732441874360,1.1915,3392.0,3391.2,0.55]
[1732441877995,1.1915,3392.0,3391.6,3.0]
[1732441878206,1.1915,3392.0,3391.3,0.55]
[1732441881419,1.1915,3392.0,3391.4,0.2936]
[1732441881619,1.1915,3392.0,3391.5,0.55]
[1732441882487,1.1915,3392.0,3391.9,3.0]
[1732441882680,1.1915,3392.0,3391.9,3.55]
[1732441884178,1.1915,3392.0,3391.7,0.8436]
[1732441884374,1.2171,3393.2,3391.7,0.8436]
[1732441884574,1.2171,3393.0,3391.7,0.8436]
[1732441885334,0.08072694,3392.9,3391.7,0.8436]
[1732441885483,1.29782694,3392.9,3391.7,0.8436]
[1732441886623,1.29782694,3392.9,3391.9,0.55]
[1732441887026,1.2171,3392.9,3391.9,0.55]
[1732441887229,0.08072694,3392.8,3391.9,0.55]
[1732441887586,0.08072694,3392.8,3391.9,0.8436]
[1732441888289,0.08072694,3392.8,3392.5,0.55]
[1732441888694,1.2171,3392.9,3392.5,0.55]
[1732441888898,1.2171,3392.9,3392.3,0.2936]
[1732441889118,1.2171,3392.9,3392.4,0.8436]
[1732441889362,1.2171,3392.9,3392.4,0.2936]
[1732441889830,1.2171,3392.9,3392.5,0.55]
[1732441891222,1.2171,3392.9,3392.1,0.2936]
[1732441891432,1.2171,3393.8,3392.3,1.1359]
[1732441891585,7.2406,3393.8,3392.6,0.2936]
[1732441891933,0.80539009,3393.7,3392.8,1.1359]
[1732441892132,0.80539009,3393.7,3392.9,0.55]
[1732441892304,0.80539009,3393.7,3393.1,3.0]
[1732441892830,0.08133009,3393.7,3392.9,0.55]
[1732441895054,1.2171,3393.6,3392.9,0.55]
[1732441895261,1.2171,3393.6,3392.7,0.55]
[1732441895418,0.08142144,3393.5,3392.7,0.55]
[1732441895615,1.2171,3393.6,3392.7,0.55]
[1732441901167,1.2171,3393.6,3392.8,0.2936]
[1732441901457,1.2171,3393.6,3392.9,0.2936]
[1732441901826,1.2171,3393.6,3393.0,0.55]
[1732441903659,1.2171,3393.6,3393.3,3.0]
[1732441904135,1.2171,3393.6,3393.0,0.55]
[1732441904374,1.2171,3393.6,3393.3,3.0]
[1732441906336,1.2171,3393.6,3392.9,0.2936]
[1732441906675,1.2171,3393.6,3393.0,0.55]
[1732441906840,1.2171,3393.6,3393.3,3.0]
[1732441907038,0.08152847,3393.5,3393.3,3.0]
[1732441908575,0.08152847,3393.5,3393.0,0.55]
[1732441909150,0.08152847,3393.5,3393.3,3.0]
[1732441909663,0.08152847,3393.5,3392.9,0.8436]
[1732441916048,1.2171,3393.6,3392.9,0.8436]
[1732441920294,1.2171,3393.6,3392.5,0.2936]
[1732441920494,1.2171,3393.6,3393.2,2.70646]
[1732441920790,1.2171,3393.6,3392.5,1.4987]
[1732441921002,1.2171,3393.6,3392.5,1.8656273]
[1732441921858,1.2171,3393.6,3392.8,0.2936]
[1732441922762,1.2171,3393.6,3392.8,0.55]
[1732441923602,1.2171,3393.6,3393.2,3.0]
[1732441923895,1.2171,3393.6,3392.8,0.55]
[1732441924105,1.2171,3393.6,3392.7,0.8436]
[1732441929200,1.2171,3393.6,3392.7,2.022]
[1732441929709,1.21464769,3393.6,3392.7,0.8436]
[1732441930058,0.0815702,3393.5,3392.7,0.8436]
[1732441930291,0.60235,3394.2,3392.7,0.8436]
[1732441930673,6.1050702,3394.1,3392.7,0.8436]
[1732441932663,1.2193,3394.0,3392.7,0.8436]
[1732441932896,1.30085961,3394.0,3392.7,0.8436]
[1732441933103,1.30085961,3394.0,3392.7,1.0436]
[1732441933809,6.0235,3393.9,3392.7,1.0436]
[1732441934014,0.73243596,3393.8,3392.7,1.0436]
[1732441934510,0.08155977,3393.7,3392.7,1.0436]
[1732441935916,1.2193,3393.6,3392.7,1.0436]
[1732441936514,1.2193,3393.4,3392.7,1.0436]
[1732441936996,0.08155977,3393.3,3392.7,1.0436]
[1732441937319,1.1067,3393.2,3392.7,1.0436]
[1732441937525,0.08155977,3393.3,3392.9,0.55]
[1732441937835,0.08155977,3393.2,3392.9,0.55]
[1732441937985,1.1067,3393.4,3392.9,0.8436]
[1732441938185,0.08155977,3393.3,3392.9,0.8436]
[1732441939018,1.1067,3393.7,3392.9,1.23999572]
[1732441939619,0.08153628,3393.6,3392.9,1.23999572]
[1732441940426,1.1067,3393.7,3392.9,1.23999572]
[1732441943739,1.1501,3394.4,3393.4,0.2936]
[1732441943944,1.1501,3394.4,3393.2,1.164]
[1732441943945,1.1501,3394.3,3393.5,0.8436]
[1732441944124,1.23189981,3394.3,3393.5,0.8436]
[1732441946551,1.23189981,3394.3,3394.1,0.2936]
[1732441947145,1.1501,3394.3,3394.1,0.2936]
[1732441947450,1.1501,3394.3,3393.7,0.2936]
[1732441947688,1.1501,3394.6,3394.1,0.2936]
[1732441947814,1.1501,3394.6,3394.4,3.0]
[1732441948020,1.1501,3395.3,3394.5,0.2936]
[1732441948719,1.1501,3395.3,3394.7,0.2936]
[1732441949747,1.1501,3395.3,3394.5,0.55]
[1732441949954,1.1501,3395.3,3394.8,3.0]
[1732441950149,1.1501,3395.3,3394.3,0.8436]
[1732441952386,1.1501,3395.3,3394.5,0.8436]
[1732441953878,1.1501,3395.3,3394.5,1.58409354]
[1732441954998,0.08239443,3395.2,3394.5,1.58409354]
[1732441957025,0.08239443,3395.2,3394.7,0.2936]
[1732441957308,0.08239443,3395.2,3394.9,0.2936]
[1732441957681,1.1501,3395.3,3394.9,0.2936]
[1732441957884,0.08239443,3395.1,3394.8,0.2936]
[1732441958180,1.1501,3395.3,3394.9,0.8436]
[1732441958706,1.1286,3395.1,3394.6,0.55]
[1732441958877,1.1286,3395.1,3394.6,0.8436]
[1732441959081,0.08244918,3395.0,3394.6,0.8436]
[1732441959265,1.1286,3395.1,3394.6,0.8436]
[1732441962708,1.1286,3395.1,3395.0,3.0]
[1732441962873,1.1286,3395.1,3394.6,0.2936]
[1732441963492,1.1286,3395.1,3395.0,3.0]
[1732441963802,1.1286,3395.1,3394.0,0.2936]
[1732441963995,1.1286,3395.1,3395.0,3.0]
[1732441964377,1.1286,3395.1,3394.6,0.2936]
[1732441964570,1.1286,3395.1,3395.0,3.0]
[1732441965513,1.1286,3395.1,3394.6,0.2936]
[1732441965685,1.1286,3395.1,3395.0,3.0]
[1732441966612,1.1286,3395.1,3394.8,0.2936]
[1732441966783,1.1286,3395.1,3395.0,3.0]
[1732441967489,1.1286,3395.1,3394.8,0.2936]
[1732441968078,1.1286,3395.1,3395.0,3.0]
[1732441969035,1.1286,3395.1,3394.8,0.2936]
[1732441969607,1.1286,3395.1,3395.0,3.0]
[1732441970023,1.145,3395.7,3394.8,0.2936]
[1732441970228,0.0824987,3395.6,3395.0,3.0]
[1732441970438,0.91419411,3395.6,3395.0,3.0]
[1732441970614,0.91419411,3395.6,3394.8,0.2936]
[1732441970822,1.145,3395.5,3395.1,3.0]
[1732441971028,1.145,3395.5,3394.7,0.8436]
[1732441971204,0.0824987,3395.4,3394.7,0.8436]
[1732441971550,1.145,3395.3,3394.7,0.8436]
[1732441971747,1.2274987,3395.3,3394.7,0.8436]
[1732441975117,1.2274987,3395.3,3394.2,0.2936]
[1732441975442,1.2274987,3395.3,3394.1,0.55]
[1732441975443,1.2274987,3395.3,3394.4,0.2936]
[1732441975953,1.2274987,3395.3,3394.6,0.2936]
[1732441976162,1.145,3395.2,3394.6,0.2936]
[1732441976666,1.145,3395.2,3395.1,3.0]
[1732441977261,1.145,3395.2,3394.7,0.2936]
[1732441977427,1.145,3395.2,3395.1,3.0]
[1732441977769,1.145,3395.2,3394.7,0.8436]
[1732441984965,1.1126,3395.0,3394.7,0.8436]
[1732441985146,1.1126,3395.0,3394.0,0.2936]
[1732441985484,0.08252217,3394.9,3394.2,0.2936]
[1732441985776,0.08252217,3394.9,3394.6,0.2936]
[1732441985983,1.1126,3395.0,3394.6,0.2936]
[1732441986481,0.08252217,3394.9,3394.6,0.2936]
[1732441986904,1.1126,3395.0,3394.4,0.2936]
[1732441987379,1.1126,3395.0,3394.6,0.2936]
[1732441987587,0.08252217,3394.9,3394.6,0.2936]
[1732441987788,1.1126,3395.0,3394.6,0.2936]
[1732441988143,1.1126,3395.0,3394.4,1.138]
[1732441988144,0.08252217,3394.9,3394.7,0.8436]
[1732441988690,1.1126,3395.0,3394.7,0.8436]
[1732441990691,0.9126,3395.0,3394.7,0.8436]
[1732441991092,0.08246221,3394.9,3394.7,0.8436]
[1732441993555,6.0235,3396.0,3394.9,0.2936]
[1732441993779,1.2158,3395.8,3395.1,3.0]
[1732441994178,1.2158,3395.8,3394.9,0.2936]
[1732441994364,1.2158,3395.6,3395.1,3.0]
[1732441994955,1.2158,3395.4,3394.9,0.2936]
[1732441995160,1.2158,3395.4,3395.1,3.0]
[1732441995378,0.08251434,3395.3,3394.9,0.2936]
[1732441995579,0.08251434,3395.3,3395.1,3.0]
[1732441995761,0.08251434,3395.3,3394.9,0.8436]
[1732441996285,0.08251434,3395.3,3394.9,0.2936]
[1732441996663,0.08251434,3395.3,3395.1,3.0]
[1732441996870,0.08251434,3395.3,3394.8,0.2936]
[1732441997264,0.08251434,3395.3,3394.9,0.2936]
[1732441997462,0.08251434,3395.3,3395.1,3.0]
[1732441997693,0.08251434,3395.3,3394.9,0.2936]
[1732441997877,0.08251434,3395.3,3395.1,3.0]
[1732441998300,0.08251434,3395.3,3394.9,0.8436]
[1732441998594,0.08251434,3395.3,3395.1,3.0]
[1732441998982,0.08251434,3395.3,3394.9,0.2936]
[1732441999186,0.08251434,3395.3,3395.1,3.0]
[1732441999562,0.08251434,3395.3,3394.8,0.2936]
[1732441999806,0.08251434,3395.3,3394.7,0.55]
[1732441999807,0.08251434,3395.3,3394.9,0.2936]
[1732442000367,0.08251434,3395.3,3395.1,3.0]
[1732442000570,0.08251434,3395.3,3394.9,0.2936]
[1732442000765,0.08251434,3395.3,3394.9,0.8436]
[1732442001090,0.08251434,3395.3,3394.9,0.2936]
[1732442001802,0.08251434,3395.3,3395.1,3.0]
[1732442002711,0.08251434,3395.3,3394.8,0.2936]
[1732442003003,0.08251434,3395.3,3394.9,0.2936]
[1732442003409,0.08251434,3395.3,3395.1,3.0]
[1732442005084,0.08251434,3395.3,3394.9,0.2936]
[1732442006017,0.08251434,3395.3,3395.1,3.0]
[1732442006204,0.08251434,3395.3,3394.9,0.2936]
[1732442006582,0.08251434,3395.3,3395.1,3.0]
[1732442006999,0.08251434,3395.3,3394.9,0.2936]
[1732442007205,0.08251434,3395.3,3395.0,0.55]
[1732442007594,0.08251434,3395.3,3395.1,3.0]
[1732442008278,0.08251434,3395.3,3395.2,0.2936]
[1732442008583,0.08251434,3395.3,3395.2,0.8436]
[1732442008802,1.2196,3395.7,3395.3,0.8436]
[1732442014617,0.08279061,3395.6,3395.3,0.8436]
[1732442015325,0.08279061,3395.6,3395.3,2.0588]
[1732442015515,1.2196,3395.9,3395.3,2.0588]
[1732442015711,0.08279061,3395.5,3395.3,2.0588]
[1732442015942,1.2196,3395.9,3395.3,2.0588]
[1732442016148,0.0827854,3395.4,3395.3,2.0588]
[1732442016309,0.1510414,3396.1,3395.3,2.0588]
[1732442016757,0.0827854,3396.0,3395.3,2.0588]
[1732442017113,0.0827854,3396.0,3395.6,0.2936]
[1732442017331,0.0827854,3396.0,3395.8,0.2936]
[1732442017670,0.0827854,3396.0,3395.9,2.0044]
[1732442018668,0.1510414,3396.1,3395.9,2.0044]
[1732442018824,0.1510414,3396.1,3396.0,3.8436]
[1732442019027,0.1510414,3396.1,3396.0,0.8436]
[1732442019227,1.1258,3397.2,3396.2,0.8436]
[1732442020265,1.1258,3397.2,3396.8,0.55]
[1732442020477,0.0008,3397.3,3397.0,0.55]
[1732442020629,0.08304852,3397.2,3397.0,0.55]
[1732442020833,0.08304852,3397.2,3396.6,3.0]
[1732442020834,1.1258,3397.2,3396.6,3.0]
[1732442021027,0.08304852,3397.1,3396.6,3.0]
[1732442021274,0.08304852,3397.1,3396.3,0.55]
[1732442021432,0.08304852,3397.1,3396.6,3.0]
[1732442022269,0.08304852,3397.1,3396.3,0.55]
[1732442022569,0.08304852,3397.1,3396.7,3.0]
[1732442023655,0.08304852,3397.1,3396.3,0.55]
[1732442024054,0.08304852,3397.1,3396.7,3.0]
[1732442024231,0.08304852,3397.1,3396.8,0.55]
[1732442028005,0.08304852,3397.1,3396.7,3.55]
[1732442028535,0.08304852,3397.1,3396.7,0.55]
[1732442029305,0.0008,3397.3,3396.7,0.55]
[1732442029511,0.08338197,3397.0,3396.7,0.55]
[1732442029692,0.0008,3397.3,3396.7,0.55]
[1732442029894,0.08338197,3397.2,3396.7,0.55]
[1732442030211,1.2123,3397.1,3396.6,0.55]
[1732442030615,1.2123,3397.1,3396.8,0.55]
[1732442030799,0.08338197,3397.0,3396.8,0.55]
[1732442031008,0.08338197,3397.0,3396.9,0.55]
[1732442031529,0.08338197,3397.0,3396.7,3.0]
[1732442031893,1.2131,3397.3,3396.6,0.55]
[1732442032094,0.08338197,3397.2,3396.6,0.55]
[1732442036615,0.08338197,3397.2,3396.7,3.0]
[1732442036817,1.2123,3397.1,3396.8,0.55]
[1732442037053,1.2123,3397.1,3396.3,0.55]
[1732442037338,0.08344707,3397.0,3396.3,0.55]
[1732442040495,0.08344707,3397.0,3396.5,0.8436]
[1732442040693,0.08344707,3397.0,3396.6,0.55]
[1732442040918,0.08344707,3397.0,3396.9,3.0]
[1732442041117,0.08344707,3397.0,3396.9,0.55]
[1732442041608,0.08344707,3397.0,3396.9,3.55]
[1732442041811,0.08344707,3397.0,3396.9,0.55]
[1732442042125,0.08344707,3397.0,3396.9,3.55]
[1732442042507,1.1218,3396.9,3395.9,1.1339]
[1732442042949,0.08345228,3396.8,3395.9,1.1339]
[1732442043235,0.08345228,3396.8,3395.9,1.4275]
[1732442043818,0.08345228,3396.8,3396.0,0.8436]
[1732442049734,1.1218,3396.7,3396.0,0.8436]
[1732442050232,0.08336111,3396.6,3396.0,0.8436]
[1732442054572,0.08336111,3396.6,3396.0,0.873041]
[1732442054793,0.08336111,3396.6,3396.3,0.2936]
[1732442054969,1.1218,3397.0,3396.4,0.55]
[1732442055285,1.1218,3397.0,3396.4,0.8436]
[1732442056380,0.0008,3397.3,3396.1,1.1633391]
[1732442056381,1.1218,3397.2,3396.6,0.8436]
[1732442056537,1.1218,3397.2,3397.1,3.0]
[1732442056873,1.1218,3397.0,3396.6,0.8436]
[1732442057058,0.0833533,3396.9,3396.6,0.8436]
[1732442061164,0.0833533,3396.9,3395.7,0.02944058]
[1732442061165,1.207,3396.8,3396.0,0.2936]
[1732442061580,1.207,3396.6,3396.0,0.2936]
[1732442062067,0.08348613,3396.5,3396.0,0.2936]
[1732442062310,0.08348613,3396.5,3395.8,0.2936]
[1732442062774,0.08348613,3396.5,3395.9,0.8436]
[1732442069881,1.1734,3396.4,3395.9,0.8436]
[1732442070365,0.08334291,3396.3,3395.9,0.8436]
[1732442075455,0.08334291,3396.3,3395.9,0.87304311]
[1732442075666,0.08334291,3396.3,3396.1,0.2936]
[1732442075965,1.1757,3396.8,3396.7,3.0]
[1732442076169,1.1757,3396.8,3396.4,0.8436]
[1732442076964,1.1757,3396.8,3396.4,0.55]
[1732442077172,1.1757,3396.8,3396.4,3.55]
[1732442077556,1.1757,3396.8,3396.4,0.55]
[1732442078254,1.1757,3396.8,3396.1,0.55]
[1732442079204,1.1757,3396.8,3396.0,0.2936]
[1732442079387,1.1757,3396.8,3396.1,0.55]
[1732442079772,1.1757,3396.8,3396.0,0.2936]
[1732442079773,1.1757,3396.8,3395.4,3.6414389]
[1732442080372,1.2121,3396.7,3395.4,3.6414389]
[1732442080696,1.2121,3396.6,3395.4,3.6414389]
[1732442080860,1.2121,3396.6,3395.5,0.67088601]
[1732442081274,1.2121,3396.6,3395.6,0.55]
[1732442087623,1.1887,3396.5,3395.6,0.55]
[1732442088792,1.1887,3396.5,3395.5,0.55]
[1732442089013,1.1887,3396.3,3395.5,0.55]
[1732442089417,1.1887,3396.3,3395.7,3.0]
[1732442089617,1.1887,3396.3,3395.5,0.55]
[1732442089929,1.1887,3396.1,3395.5,0.55]
[1732442090130,0.08307722,3396.0,3395.5,0.55]
[1732442090290,1.1887,3395.9,3395.5,0.55]
[1732442090688,1.1887,3395.7,3395.5,0.55]
[1732442091100,1.1887,3395.7,3395.6,0.2936]
[1732442091300,1.1887,3395.7,3395.6,0.55]
[1732442092306,1.1887,3395.7,3395.3,0.55]
[1732442096512,1.1887,3396.3,3395.4,0.57945]
[1732442096799,0.08304335,3396.2,3395.7,0.2936]
[1732442097008,0.08304335,3396.2,3395.8,0.8436]
[1732442097207,1.1887,3396.3,3395.9,0.55]
[1732442097423,0.08304335,3396.1,3395.9,0.55]
[1732442097624,1.1887,3396.3,3396.2,3.0]
[1732442097832,1.1887,3396.3,3396.2,0.55]
[1732442098135,1.1887,3396.3,3396.2,3.55]
[1732442099002,1.1887,3396.3,3395.9,0.55]
[1732442099635,1.1887,3396.3,3396.2,3.55]
[1732442099889,1.1887,3396.3,3396.2,0.55]
[1732442100040,1.1887,3396.3,3396.2,3.55]
[1732442100537,1.1887,3396.3,3395.9,0.55]
[1732442101102,1.1887,3396.3,3395.4,1.4597]
[1732442101822,1.1887,3396.3,3396.2,3.0]
[1732442102039,1.1887,3396.3,3395.3,0.2936]
[1732442102216,1.1887,3396.3,3396.2,3.0]
[1732442102612,1.1887,3396.3,3395.4,0.8436]
[1732442104809,0.08316317,3396.2,3395.4,0.8436]
[1732442107845,1.1542,3396.1,3395.4,0.8436]
[1732442108213,0.08315796,3396.0,3395.4,0.8436]
[1732442109255,1.1542,3395.9,3395.1,0.2936]
[1732442109415,1.23734493,3395.9,3394.7,5.8]
[1732442109611,1.1542,3395.8,3394.7,2.86]
[1732442109828,1.23731367,3395.8,3394.7,2.86]
[1732442110213,1.23731367,3395.8,3394.8,0.2936]
[1732442110524,1.23731367,3395.8,3394.9,0.55]
[1732442111045,1.1542,3395.8,3394.9,0.55]
[1732442111256,1.1542,3395.8,3395.1,0.55]
[1732442111455,1.1542,3395.8,3395.2,0.2936]
[1732442111623,1.1542,3395.8,3394.9,0.8436]
[1732442111827,1.1542,3395.7,3394.9,0.2936]
[1732442112027,1.38504,3395.6,3394.9,0.2936]
[1732442112249,1.1542,3395.5,3394.0,0.02945667]
[1732442112554,1.1542,3395.5,3394.1,1.86215928]
[1732442112727,1.1542,3395.3,3394.2,0.32305657]
[1732442112927,1.1542,3395.3,3394.2,0.2936]
[1732442113153,0.08280623,3395.2,3394.2,0.2936]
[1732442113430,1.1542,3395.1,3393.8,0.2936]
[1732442113760,1.1542,3395.1,3393.9,0.02945848]
[1732442113925,0.08280102,3395.0,3393.9,0.02945848]
[1732442114562,0.08280102,3395.0,3394.2,0.2936]
[1732442114728,0.08280102,3395.0,3394.6,0.2936]
[1732442114924,0.08280102,3395.0,3394.7,0.55]
[1732442115133,0.08280102,3395.0,3394.9,0.2936]
[1732442115438,1.1542,3395.3,3395.1,0.2936]
[1732442115947,1.1542,3395.3,3395.2,0.8436]
[1732442118736,1.1954,3395.6,3395.2,0.8436]
[1732442119886,0.08277496,3395.5,3395.2,0.8436]
[1732442120750,1.1954,3395.9,3395.2,0.8436]
[1732442120949,0.08277496,3395.4,3395.2,0.8436]
[1732442121148,1.1954,3395.9,3395.2,0.8436]
[1732442121356,0.08277496,3395.3,3395.2,0.8436]
[1732442121568,1.1954,3395.9,3395.2,0.8436]
[1732442121960,0.08277496,3395.8,3395.2,0.8436]
[1732442125269,0.08277496,3395.8,3395.6,0.2936]
[1732442125466,6.0235,3396.9,3395.6,0.2936]
[1732442125467,1.1029,3396.8,3395.7,0.55]
[1732442125641,1.1029,3396.7,3396.1,0.55]
[1732442130699,1.1029,3396.7,3396.2,3.0]
[1732442131059,1.1029,3396.7,3396.3,0.2936]
[1732442132167,1.1029,3396.7,3396.0,0.2936]
[1732442132393,1.1029,3396.7,3396.1,0.8436]
[1732442132773,1.1029,3396.7,3396.1,0.2936]
[1732442133176,1.1029,3396.7,3396.2,3.0]
[1732442133671,1.1029,3396.7,3396.1,0.8436]
[1732442133902,1.1029,3396.7,3396.2,3.0]
[1732442134609,1.1029,3396.7,3396.2,0.55]
[1732442134817,0.08278799,3396.6,3396.2,0.55]
[1732442135107,0.08278799,3396.6,3396.3,0.00506136]
[1732442138485,0.08278799,3396.6,3396.3,3.00506136]
[1732442139002,0.08278799,3396.6,3396.5,3.0]
[1732442139309,0.08278799,3396.6,3396.3,0.84866136]
[1732442139799,1.1847,3397.0,3396.3,0.84866136]
[1732442139961,0.08309286,3396.5,3396.3,0.84866136]
[1732442140166,1.1847,3397.0,3396.3,0.84866136]
[1732442150204,1.1847,3397.0,3396.5,3.0]
[1732442150417,0.08318662,3396.9,3396.3,0.00506136]
[1732442150579,1.2172,3396.8,3396.3,0.00506136]
[1732442150782,1.2172,3396.8,3396.5,3.0]
[1732442150783,0.08318662,3396.7,3396.5,3.0]